[Event "*** Titled Tuesday Blitz"]
[Site "Chess.com"]
[Date "2020.11.10"]
[Round "4"]
[White "Sanan_Sjugirov"]
[Black "scarabee43"]
[Result "1-0"]
[WhiteElo "2832"]
[BlackElo "2570"]
[TimeControl "180+1"]
[EndTime "10:42:10 PST"]
[Termination "Sanan_Sjugirov won by checkmate"]

1. e4 {[%clk 0:03:00.2]} 1... c5 {[%clk 0:02:59.5]} 2. Nf3 {[%clk 0:02:59.7]}
2... e6 {[%clk 0:02:59.5]} 3. d3 {[%clk 0:02:55.6]} 3... d5 {[%clk 0:02:55.9]}
4. Qe2 {[%clk 0:02:55.1]} 4... Nf6 {[%clk 0:02:54.2]} 5. g3 {[%clk 0:02:52.9]}
5... Be7 {[%clk 0:02:51.9]} 6. Bg2 {[%clk 0:02:52.4]} 6... O-O {[%clk 0:02:52]}
7. O-O {[%clk 0:02:51.8]} 7... Nc6 {[%clk 0:02:51.6]} 8. e5 {[%clk 0:02:51.1]}
8... Nd7 {[%clk 0:02:50.2]} 9. c4 {[%clk 0:02:51]} 9... dxc4 {[%clk 0:02:45.3]}
10. dxc4 {[%clk 0:02:50.7]} 10... b6 {[%clk 0:02:45.7]} 11. Nc3 {[%clk
0:02:44.2]} 11... Bb7 {[%clk 0:02:43.9]} 12. Bf4 {[%clk 0:02:40.2]} 12... Nd4
{[%clk 0:02:20.7]} 13. Nxd4 {[%clk 0:02:38.1]} 13... Bxg2 {[%clk 0:02:21.2]} 14.
Kxg2 {[%clk 0:02:28]} 14... cxd4 {[%clk 0:02:21]} 15. Nb5 {[%clk 0:02:28.1]}
15... Nc5 {[%clk 0:02:19.1]} 16. Rad1 {[%clk 0:02:11.6]} 16... d3 {[%clk
0:02:19.1]} 17. Qf3 {[%clk 0:02:10]} 17... Qc8 {[%clk 0:02:15.4]} 18. Be3 {[%clk
0:01:56.6]} 18... Rd8 {[%clk 0:01:33.8]} 19. b3 {[%clk 0:01:56.1]} 19... a6
{[%clk 0:01:31.1]} 20. Nd4 {[%clk 0:01:55.7]} 20... Rd7 {[%clk 0:01:27.8]} 21.
Rd2 {[%clk 0:01:35.1]} 21... Bf8 {[%clk 0:01:16.1]} 22. Rfd1 {[%clk 0:01:33.4]}
22... Raa7 {[%clk 0:01:09]} 23. h4 {[%clk 0:01:27.2]} 23... Rac7 {[%clk
0:00:56.8]} 24. h5 {[%clk 0:01:26.6]} 24... Qb8 {[%clk 0:00:52.1]} 25. h6 {[%clk
0:01:21]} 25... g6 {[%clk 0:00:48.6]} 26. b4 {[%clk 0:00:59.2]} 26... Na4 {[%clk
0:00:47.9]} 27. Rxd3 {[%clk 0:00:59.3]} 27... Qc8 {[%clk 0:00:34]} 28. Ne2
{[%clk 0:00:29.4]} 28... Rxd3 {[%clk 0:00:31.1]} 29. Rxd3 {[%clk 0:00:30.3]}
29... Rxc4 {[%clk 0:00:30.6]} 30. a3 {[%clk 0:00:29.9]} 30... Rc2 {[%clk
0:00:26.9]} 31. Qf6 {[%clk 0:00:14.6]} 31... Qc6+ {[%clk 0:00:21.4]} 32. Kh2
{[%clk 0:00:14.2]} 32... Rxe2 {[%clk 0:00:02.9]} 33. Rd8 {[%clk 0:00:13.9]}
33... Re1 {[%clk 0:00:02.8]} 34. Qg7# {[%clk 0:00:13.9]} 1-0

[Event "*** Titled Tuesday Blitz"]
[Site "Chess.com"]
[Date "2020.11.10"]
[Round "4"]
[White "ShahMatKanal"]
[Black "frederiksvane"]
[Result "0-1"]
[WhiteElo "2500"]
[BlackElo "2701"]
[TimeControl "180+1"]
[EndTime "10:42:11 PST"]
[Termination "frederiksvane won by checkmate"]

1. d4 {[%clk 0:03:00.9]} 1... Nf6 {[%clk 0:02:57.6]} 2. c4 {[%clk 0:03:00.6]}
2... e6 {[%clk 0:02:57.8]} 3. Nc3 {[%clk 0:03:00.5]} 3... Bb4 {[%clk 0:02:58.4]}
4. e3 {[%clk 0:02:57.8]} 4... c5 {[%clk 0:02:48.7]} 5. Ne2 {[%clk 0:02:54.7]}
5... O-O {[%clk 0:02:41.5]} 6. a3 {[%clk 0:02:48.7]} 6... Bxc3+ {[%clk
0:02:41.8]} 7. Nxc3 {[%clk 0:02:48]} 7... b6 {[%clk 0:02:42.1]} 8. d5 {[%clk
0:02:42.7]} 8... exd5 {[%clk 0:02:39.9]} 9. cxd5 {[%clk 0:02:42]} 9... a6 {[%clk
0:02:32.3]} 10. Be2 {[%clk 0:02:30.6]} 10... b5 {[%clk 0:02:31.6]} 11. O-O
{[%clk 0:02:28.7]} 11... Bb7 {[%clk 0:02:30.8]} 12. Bf3 {[%clk 0:02:28.1]} 12...
d6 {[%clk 0:02:27.8]} 13. b4 {[%clk 0:02:23.1]} 13... Nbd7 {[%clk 0:02:25.8]}
14. Bb2 {[%clk 0:02:11.2]} 14... Rc8 {[%clk 0:02:06.5]} 15. bxc5 {[%clk
0:01:58.3]} 15... Nxc5 {[%clk 0:02:04.3]} 16. Rc1 {[%clk 0:01:43.9]} 16... Nfd7
{[%clk 0:02:02.4]} 17. Ne4 {[%clk 0:01:35.9]} 17... Nxe4 {[%clk 0:01:55.8]} 18.
Bxe4 {[%clk 0:01:36.8]} 18... Rxc1 {[%clk 0:01:50.8]} 19. Qxc1 {[%clk
0:01:33.6]} 19... Nc5 {[%clk 0:01:51]} 20. Bb1 {[%clk 0:01:06]} 20... Bxd5
{[%clk 0:01:41.4]} 21. Qc3 {[%clk 0:00:55.2]} 21... Qg5 {[%clk 0:01:35.5]} 22.
f3 {[%clk 0:00:47.8]} 22... Na4 {[%clk 0:01:34.5]} 23. Qd3 {[%clk 0:00:41.2]}
23... Qh5 {[%clk 0:00:34.1]} 24. Ba1 {[%clk 0:00:34.2]} 24... Bc4 {[%clk
0:00:32.4]} 25. Qd4 {[%clk 0:00:33.9]} 25... Qh6 {[%clk 0:00:31.5]} 26. Rd1
{[%clk 0:00:25.8]} 26... Nc5 {[%clk 0:00:26.6]} 27. Kf2 {[%clk 0:00:22]} 27...
Re8 {[%clk 0:00:19]} 28. Qxd6 {[%clk 0:00:09.4]} 28... Qxe3+ {[%clk 0:00:18.4]}
29. Kg3 {[%clk 0:00:09.9]} 29... Qg5+ {[%clk 0:00:15.5]} 30. Kh3 {[%clk
0:00:06.7]} 30... Ne6 {[%clk 0:00:12.5]} 31. g3 {[%clk 0:00:03.8]} 31... Be2
{[%clk 0:00:07.8]} 32. Rd3 {[%clk 0:00:02.7]} 32... Bf1# {[%clk 0:00:07.6]} 0-1

[Event "*** Titled Tuesday Blitz"]
[Site "Chess.com"]
[Date "2020.11.10"]
[Round "4"]
[White "annacramling"]
[Black "GM4life"]
[Result "1/2-1/2"]
[WhiteElo "2022"]
[BlackElo "2255"]
[TimeControl "180+1"]
[EndTime "10:42:11 PST"]
[Termination "Game drawn by repetition"]

1. Nf3 {[%clk 0:03:00.9]} 1... Nf6 {[%clk 0:02:58.5]} 2. b3 {[%clk 0:02:54.7]}
2... d5 {[%clk 0:02:58.1]} 3. Bb2 {[%clk 0:02:54.6]} 3... c5 {[%clk 0:02:58.2]}
4. e3 {[%clk 0:02:54.7]} 4... Nc6 {[%clk 0:02:58.3]} 5. Bb5 {[%clk 0:02:53.3]}
5... Bg4 {[%clk 0:02:58.9]} 6. h3 {[%clk 0:02:52.3]} 6... Bh5 {[%clk 0:02:58.5]}
7. d3 {[%clk 0:02:50.7]} 7... e6 {[%clk 0:02:59]} 8. Nbd2 {[%clk 0:02:50.4]}
8... Bd6 {[%clk 0:02:58.2]} 9. O-O {[%clk 0:02:49.9]} 9... O-O {[%clk
0:02:58.6]} 10. d4 {[%clk 0:02:40.6]} 10... cxd4 {[%clk 0:02:56.7]} 11. exd4
{[%clk 0:02:32.6]} 11... Bc7 {[%clk 0:02:56.5]} 12. Be2 {[%clk 0:02:31]} 12...
Qd6 {[%clk 0:02:55.7]} 13. Ne5 {[%clk 0:02:28.6]} 13... Bxe2 {[%clk 0:02:54.5]}
14. Qxe2 {[%clk 0:02:28.4]} 14... Rfe8 {[%clk 0:02:47.5]} 15. Ndf3 {[%clk
0:02:21.9]} 15... Ne4 {[%clk 0:02:44.7]} 16. c4 {[%clk 0:02:17.6]} 16... f6
{[%clk 0:02:43.1]} 17. c5 {[%clk 0:01:59.3]} 17... Qe7 {[%clk 0:02:42.5]} 18.
Nxc6 {[%clk 0:01:53.6]} 18... bxc6 {[%clk 0:02:43]} 19. Qa6 {[%clk 0:01:50.7]}
19... Qd7 {[%clk 0:02:41.7]} 20. b4 {[%clk 0:01:41.8]} 20... Reb8 {[%clk
0:02:38.9]} 21. a3 {[%clk 0:01:32.7]} 21... Bd8 {[%clk 0:02:29.3]} 22. Rfe1
{[%clk 0:01:24.4]} 22... Qb7 {[%clk 0:02:27.3]} 23. Qd3 {[%clk 0:01:20.4]} 23...
a5 {[%clk 0:02:26.6]} 24. Rab1 {[%clk 0:00:55.7]} 24... axb4 {[%clk 0:02:25.3]}
25. axb4 {[%clk 0:00:55.7]} 25... Qxb4 {[%clk 0:02:24.6]} 26. Ba3 {[%clk
0:00:34.7]} 26... Qa4 {[%clk 0:02:08.6]} 27. Rxb8 {[%clk 0:00:28.3]} 27... Rxb8
{[%clk 0:02:09.5]} 28. Bc1 {[%clk 0:00:27.7]} 28... Qb3 {[%clk 0:02:05.1]} 29.
Qxb3 {[%clk 0:00:18.3]} 29... Rxb3 {[%clk 0:02:04.3]} 30. Nd2 {[%clk 0:00:18.6]}
30... Nxd2 {[%clk 0:02:02.6]} 31. Bxd2 {[%clk 0:00:18.9]} 31... Rd3 {[%clk
0:01:57.9]} 32. Be3 {[%clk 0:00:18.9]} 32... e5 {[%clk 0:01:43.8]} 33. Ra1
{[%clk 0:00:09.6]} 33... Kf7 {[%clk 0:01:39]} 34. Ra7+ {[%clk 0:00:08.2]} 34...
Be7 {[%clk 0:01:39.1]} 35. dxe5 {[%clk 0:00:07]} 35... fxe5 {[%clk 0:01:38.1]}
36. Bg5 {[%clk 0:00:06.9]} 36... Rd1+ {[%clk 0:01:32.8]} 37. Kh2 {[%clk
0:00:06.5]} 37... d4 {[%clk 0:01:26.6]} 38. Bxe7 {[%clk 0:00:06.6]} 38... d3
{[%clk 0:01:25.8]} 39. Bg5+ {[%clk 0:00:03.9]} 39... Kg6 {[%clk 0:01:24.2]} 40.
Be3 {[%clk 0:00:03.3]} 40... Re1 {[%clk 0:01:19.1]} 41. Rd7 {[%clk 0:00:03.3]}
41... e4 {[%clk 0:01:16.4]} 42. Rd6+ {[%clk 0:00:03.7]} 42... Kf7 {[%clk
0:01:14.3]} 43. Rxc6 {[%clk 0:00:04.5]} 43... Re2 {[%clk 0:01:11.3]} 44. Rd6
{[%clk 0:00:04.7]} 44... Rc2 {[%clk 0:01:11.8]} 45. c6 {[%clk 0:00:05]} 45...
Ke7 {[%clk 0:01:11.4]} 46. Rd7+ {[%clk 0:00:05.3]} 46... Ke6 {[%clk 0:01:11.1]}
47. Rxg7 {[%clk 0:00:04.7]} 47... Rxc6 {[%clk 0:01:10.4]} 48. Rg5 {[%clk
0:00:03.3]} 48... Rd6 {[%clk 0:01:09.9]} 49. Bd2 {[%clk 0:00:02.7]} 49... Rb6
{[%clk 0:01:08.7]} 50. Rh5 {[%clk 0:00:02.4]} 50... Rb2 {[%clk 0:01:07.8]} 51.
Rh6+ {[%clk 0:00:02.4]} 51... Kd5 {[%clk 0:01:07.9]} 52. Be3 {[%clk 0:00:01.7]}
52... d2 {[%clk 0:01:04.1]} 53. Rxh7 {[%clk 0:00:02.3]} 53... Kd6 {[%clk
0:01:00.8]} 54. Rh6+ {[%clk 0:00:02.7]} 54... Kd5 {[%clk 0:01:00.8]} 55. Rh7
{[%clk 0:00:02.4]} 55... Kd6 {[%clk 0:01:01.1]} 56. Rh8 {[%clk 0:00:03]} 56...
Kd7 {[%clk 0:01:01.1]} 57. Rh7+ {[%clk 0:00:03.3]} 57... Kd6 {[%clk 0:01:01.1]}
1/2-1/2

[Event "*** Titled Tuesday Blitz"]
[Site "Chess.com"]
[Date "2020.11.10"]
[Round "4"]
[White "oskariot"]
[Black "Alomaterapia"]
[Result "1-0"]
[WhiteElo "2697"]
[BlackElo "2495"]
[TimeControl "180+1"]
[EndTime "10:42:12 PST"]
[Termination "oskariot won by resignation"]

1. e4 {[%clk 0:02:42.2]} 1... e5 {[%clk 0:02:26.1]} 2. Nf3 {[%clk 0:02:41.1]}
2... Nc6 {[%clk 0:02:26.3]} 3. Nc3 {[%clk 0:02:42]} 3... Nf6 {[%clk 0:02:25.9]}
4. a3 {[%clk 0:02:42.9]} 4... Be7 {[%clk 0:02:21.4]} 5. d4 {[%clk 0:02:41.4]}
5... exd4 {[%clk 0:02:20.2]} 6. Nxd4 {[%clk 0:02:42.3]} 6... d6 {[%clk
0:02:20.5]} 7. Be2 {[%clk 0:02:33.1]} 7... O-O {[%clk 0:02:20.2]} 8. O-O {[%clk
0:02:33.5]} 8... Re8 {[%clk 0:02:19.5]} 9. Re1 {[%clk 0:02:33.9]} 9... Bd7
{[%clk 0:02:17.5]} 10. f4 {[%clk 0:02:25.6]} 10... Nxd4 {[%clk 0:01:57.9]} 11.
Qxd4 {[%clk 0:02:26.5]} 11... Bc6 {[%clk 0:01:55.3]} 12. Bf3 {[%clk 0:02:25.1]}
12... Bf8 {[%clk 0:01:38.2]} 13. Be3 {[%clk 0:02:25.2]} 13... g6 {[%clk
0:01:34]} 14. Qd3 {[%clk 0:02:12.5]} 14... Bg7 {[%clk 0:01:33.7]} 15. Bd4 {[%clk
0:02:12.9]} 15... Nd7 {[%clk 0:01:24.7]} 16. Rad1 {[%clk 0:02:05.2]} 16... Bxd4+
{[%clk 0:01:20.4]} 17. Qxd4 {[%clk 0:02:05.4]} 17... Qf6 {[%clk 0:01:20]} 18.
Qxf6 {[%clk 0:01:50]} 18... Nxf6 {[%clk 0:01:19.8]} 19. Kf2 {[%clk 0:01:49.6]}
19... Re6 {[%clk 0:00:57]} 20. e5 {[%clk 0:01:35.3]} 20... dxe5 {[%clk
0:00:50.9]} 21. fxe5 {[%clk 0:01:24.7]} 21... Ne8 {[%clk 0:00:39]} 22. Nd5
{[%clk 0:01:11.4]} 22... h5 {[%clk 0:00:22.6]} 23. c4 {[%clk 0:01:10.6]} 23...
Kg7 {[%clk 0:00:21.3]} 24. h4 {[%clk 0:00:59.3]} 24... Rd8 {[%clk 0:00:17.3]}
25. b4 {[%clk 0:00:56.6]} 25... b5 {[%clk 0:00:14.5]} 26. Nf4 {[%clk 0:00:47.6]}
26... Rxd1 {[%clk 0:00:07.3]} 27. Nxe6+ {[%clk 0:00:47.7]} 27... fxe6 {[%clk
0:00:07.7]} 28. Rxd1 {[%clk 0:00:46.8]} 28... Bxf3 {[%clk 0:00:08.2]} 29. Kxf3
{[%clk 0:00:46.2]} 29... bxc4 {[%clk 0:00:08.7]} 30. Rc1 {[%clk 0:00:40.7]}
30... Kf7 {[%clk 0:00:08]} 31. Rxc4 {[%clk 0:00:40.4]} 31... Ke7 {[%clk
0:00:08.6]} 32. Rc6 {[%clk 0:00:39.1]} 32... Kd7 {[%clk 0:00:09.2]} 33. Ra6
{[%clk 0:00:39.3]} 33... Ng7 {[%clk 0:00:09.9]} 34. Rxa7 {[%clk 0:00:39.4]}
34... Nf5 {[%clk 0:00:10.8]} 35. g3 {[%clk 0:00:39.4]} 35... Nd4+ {[%clk
0:00:11.3]} 36. Kf4 {[%clk 0:00:38]} 36... Nb5 {[%clk 0:00:11.2]} 37. Ra8 {[%clk
0:00:36.8]} 37... Nc3 {[%clk 0:00:08.9]} 38. Rg8 {[%clk 0:00:34.1]} 38... Kc6
{[%clk 0:00:05.9]} 39. Rxg6 {[%clk 0:00:33.7]} 39... Kb6 {[%clk 0:00:04.8]} 40.
Rxe6+ {[%clk 0:00:33.6]} 40... Kb5 {[%clk 0:00:04.4]} 41. Rh6 {[%clk 0:00:34.5]}
41... Nd5+ {[%clk 0:00:03.9]} 42. Kf5 {[%clk 0:00:34.6]} 42... Ne3+ {[%clk
0:00:04]} 43. Ke4 {[%clk 0:00:33.2]} 1-0

[Event "*** Titled Tuesday Blitz"]
[Site "Chess.com"]
[Date "2020.11.10"]
[Round "4"]
[White "FontVella8"]
[Black "PaulfromSPb"]
[Result "0-1"]
[WhiteElo "2512"]
[BlackElo "2713"]
[TimeControl "180+1"]
[EndTime "10:42:13 PST"]
[Termination "PaulfromSPb won by resignation"]

1. e4 {[%clk 0:03:00.9]} 1... c5 {[%clk 0:02:55.2]} 2. Nf3 {[%clk 0:03:00.8]}
2... d6 {[%clk 0:02:55.2]} 3. Bb5+ {[%clk 0:02:59.9]} 3... Nd7 {[%clk
0:02:54.6]} 4. c3 {[%clk 0:02:57]} 4... Nf6 {[%clk 0:02:53.7]} 5. Qe2 {[%clk
0:02:56.3]} 5... a6 {[%clk 0:02:50]} 6. Ba4 {[%clk 0:02:56.1]} 6... b5 {[%clk
0:02:49.3]} 7. Bc2 {[%clk 0:02:55.9]} 7... e5 {[%clk 0:02:48.8]} 8. O-O {[%clk
0:02:56]} 8... Bb7 {[%clk 0:02:48.5]} 9. Rd1 {[%clk 0:02:55.6]} 9... Qb6 {[%clk
0:02:46.4]} 10. d4 {[%clk 0:02:55.5]} 10... Be7 {[%clk 0:02:46.3]} 11. Bg5
{[%clk 0:02:50.1]} 11... O-O {[%clk 0:02:45.6]} 12. Nbd2 {[%clk 0:02:44]} 12...
Rfe8 {[%clk 0:02:41.1]} 13. d5 {[%clk 0:02:39.5]} 13... Nf8 {[%clk 0:02:37.5]}
14. Nf1 {[%clk 0:02:36.3]} 14... Ng6 {[%clk 0:02:37.1]} 15. Ng3 {[%clk
0:02:35.5]} 15... h6 {[%clk 0:02:36.7]} 16. Be3 {[%clk 0:02:34.7]} 16... Qc7
{[%clk 0:02:33.7]} 17. Nf5 {[%clk 0:02:34.5]} 17... Bf8 {[%clk 0:02:33.7]} 18.
c4 {[%clk 0:02:23.3]} 18... bxc4 {[%clk 0:02:32]} 19. Nd2 {[%clk 0:02:20.7]}
19... Nf4 {[%clk 0:02:27.8]} 20. Qf1 {[%clk 0:02:12.6]} 20... g6 {[%clk
0:02:27.1]} 21. Ng3 {[%clk 0:02:11.5]} 21... c3 {[%clk 0:02:12.2]} 22. bxc3
{[%clk 0:02:10.5]} 22... Ng4 {[%clk 0:02:12.6]} 23. Nc4 {[%clk 0:02:03.4]} 23...
a5 {[%clk 0:02:12.3]} 24. Ba4 {[%clk 0:02:00.8]} 24... Ba6 {[%clk 0:02:07.4]}
25. h3 {[%clk 0:01:55.4]} 25... Nf6 {[%clk 0:02:04]} 26. Rab1 {[%clk 0:01:35.6]}
26... Reb8 {[%clk 0:02:02.5]} 27. Bc6 {[%clk 0:01:34.9]} 27... Rxb1 {[%clk
0:02:00.7]} 28. Rxb1 {[%clk 0:01:34.7]} 28... Rb8 {[%clk 0:02:01.6]} 29. Rb3
{[%clk 0:00:57.2]} 29... h5 {[%clk 0:01:44.2]} 30. Qb1 {[%clk 0:00:55.6]} 30...
Rxb3 {[%clk 0:01:41.1]} 31. axb3 {[%clk 0:00:54.1]} 31... h4 {[%clk 0:01:41]}
32. Bxf4 {[%clk 0:00:51.8]} 32... exf4 {[%clk 0:01:40.5]} 33. Ne2 {[%clk
0:00:51.9]} 33... f3 {[%clk 0:01:39.7]} 34. gxf3 {[%clk 0:00:51.2]} 34... Bc8
{[%clk 0:01:32.7]} 35. Kg2 {[%clk 0:00:49.1]} 35... Bh6 {[%clk 0:01:27.7]} 36.
Ne3 {[%clk 0:00:47.9]} 36... Bxe3 {[%clk 0:01:22.2]} 37. fxe3 {[%clk 0:00:48]}
37... Qe7 {[%clk 0:01:23]} 38. Qe1 {[%clk 0:00:22]} 38... Nxe4 {[%clk
0:01:22.6]} 39. fxe4 {[%clk 0:00:22.4]} 39... Qxe4+ {[%clk 0:01:23.5]} 40. Kg1
{[%clk 0:00:18.1]} 40... Qxe3+ {[%clk 0:01:21.6]} 41. Qf2 {[%clk 0:00:18.2]}
41... Qxh3 {[%clk 0:01:21.7]} 42. Be8 {[%clk 0:00:15.2]} 42... Bf5 {[%clk
0:01:20.5]} 43. c4 {[%clk 0:00:09.3]} 43... Qxb3 {[%clk 0:01:18.9]} 44. Qxh4
{[%clk 0:00:09.4]} 44... Qe3+ {[%clk 0:01:15.1]} 45. Qf2 {[%clk 0:00:06.2]}
45... Qxe8 {[%clk 0:01:15]} 46. Ng3 {[%clk 0:00:06.4]} 46... Qe5 {[%clk
0:01:13.5]} 47. Kg2 {[%clk 0:00:05.5]} 47... Be4+ {[%clk 0:01:12.9]} 48. Kh2
{[%clk 0:00:05.3]} 48... Bd3 {[%clk 0:01:13.1]} 49. Qf3 {[%clk 0:00:05.3]} 49...
Bc2 {[%clk 0:01:09.6]} 50. Qf2 {[%clk 0:00:04.9]} 50... Bf5 {[%clk 0:01:07.2]}
51. Kg1 {[%clk 0:00:04.4]} 51... Kg7 {[%clk 0:01:07.2]} 52. Ne2 {[%clk
0:00:04.2]} 52... Bd3 {[%clk 0:01:06.2]} 53. Nf4 {[%clk 0:00:02.6]} 53... Bxc4
{[%clk 0:01:05.1]} 54. Qf3 {[%clk 0:00:02.6]} 54... a4 {[%clk 0:01:04.4]} 55.
Kf2 {[%clk 0:00:01.6]} 55... a3 {[%clk 0:01:04.1]} 56. Qxa3 {[%clk 0:00:01.4]}
0-1

[Event "*** Titled Tuesday Blitz"]
[Site "Chess.com"]
[Date "2020.11.10"]
[Round "4"]
[White "bazar-wokzal"]
[Black "ShcufNaiRolf"]
[Result "1-0"]
[WhiteElo "2498"]
[BlackElo "2332"]
[TimeControl "180+1"]
[EndTime "10:42:14 PST"]
[Termination "bazar-wokzal won by resignation"]

1. e4 {[%clk 0:03:00.9]} 1... e5 {[%clk 0:02:57.3]} 2. Bc4 {[%clk 0:03:00.5]}
2... Nf6 {[%clk 0:02:57.1]} 3. d3 {[%clk 0:03:00.5]} 3... c6 {[%clk 0:02:56.4]}
4. Nf3 {[%clk 0:03:00.7]} 4... Be7 {[%clk 0:02:54.6]} 5. O-O {[%clk 0:03:00.4]}
5... d6 {[%clk 0:02:54.1]} 6. a4 {[%clk 0:03:00]} 6... a5 {[%clk 0:02:51.2]} 7.
Nc3 {[%clk 0:02:59.6]} 7... Nbd7 {[%clk 0:02:47.5]} 8. h3 {[%clk 0:02:58.3]}
8... Nf8 {[%clk 0:02:45.5]} 9. d4 {[%clk 0:02:50.1]} 9... Ng6 {[%clk 0:02:43]}
10. Re1 {[%clk 0:02:50]} 10... O-O {[%clk 0:02:42.5]} 11. Be3 {[%clk 0:02:47.8]}
11... Nxe4 {[%clk 0:02:18.2]} 12. Nxe4 {[%clk 0:02:40.5]} 12... d5 {[%clk
0:02:18.4]} 13. Nxe5 {[%clk 0:02:23.2]} 13... Nxe5 {[%clk 0:02:13.4]} 14. dxe5
{[%clk 0:02:23.4]} 14... dxc4 {[%clk 0:02:13.5]} 15. Qxd8 {[%clk 0:02:10.9]}
15... Rxd8 {[%clk 0:02:14.4]} 16. Bb6 {[%clk 0:02:10.1]} 16... Rd5 {[%clk
0:02:04]} 17. f4 {[%clk 0:01:56.5]} 17... Bf5 {[%clk 0:01:56.7]} 18. Rac1 {[%clk
0:01:44.9]} 18... Ra6 {[%clk 0:00:37.2]} 19. Bc7 {[%clk 0:01:35.3]} 19... Bxe4
{[%clk 0:00:29.8]} 20. Rxe4 {[%clk 0:01:34.5]} 20... b5 {[%clk 0:00:30.7]} 21.
Kf2 {[%clk 0:01:26.6]} 21... g6 {[%clk 0:00:24.8]} 22. Ke2 {[%clk 0:01:25.8]}
22... Ra7 {[%clk 0:00:18.9]} 23. Bb6 {[%clk 0:01:23.5]} 23... Ra6 {[%clk
0:00:17.3]} 24. Be3 {[%clk 0:01:20.9]} 24... Ra8 {[%clk 0:00:16.5]} 25. Rd1
{[%clk 0:01:19.9]} 25... Rad8 {[%clk 0:00:16.6]} 26. Red4 {[%clk 0:01:17.6]}
26... Rxd4 {[%clk 0:00:13.9]} 27. Rxd4 {[%clk 0:01:15.9]} 27... Rxd4 {[%clk
0:00:11.5]} 28. Bxd4 {[%clk 0:01:16.6]} 28... bxa4 {[%clk 0:00:12.4]} 29. Bb6
{[%clk 0:01:12]} 29... a3 {[%clk 0:00:12.6]} 30. bxa3 {[%clk 0:01:12.1]} 30...
Bxa3 {[%clk 0:00:13.5]} 31. Bxa5 {[%clk 0:01:12.6]} 31... Bc5 {[%clk 0:00:08.3]}
32. g4 {[%clk 0:01:12.3]} 32... Kf8 {[%clk 0:00:07.8]} 33. f5 {[%clk 0:01:11.2]}
33... Bd4 {[%clk 0:00:06.6]} 34. Bc7 {[%clk 0:01:10.4]} 34... Ke7 {[%clk
0:00:06.6]} 35. Kf3 {[%clk 0:01:09]} 35... Kd7 {[%clk 0:00:07]} 36. Bd6 {[%clk
0:01:08.1]} 36... gxf5 {[%clk 0:00:03.9]} 37. gxf5 {[%clk 0:01:08.2]} 37... f6
{[%clk 0:00:04.3]} 38. Ke4 {[%clk 0:01:08.6]} 38... Bb2 {[%clk 0:00:03.8]} 39.
Bb8 {[%clk 0:01:01.7]} 39... fxe5 {[%clk 0:00:03.9]} 40. Bxe5 {[%clk 0:01:01.1]}
40... Ba3 {[%clk 0:00:04.3]} 41. Kd4 {[%clk 0:00:59.4]} 41... Bb2+ {[%clk
0:00:04.7]} 42. c3 {[%clk 0:00:59.6]} 42... Ke7 {[%clk 0:00:01.7]} 43. Kxc4
{[%clk 0:00:59.8]} 43... Bc1 {[%clk 0:00:02]} 44. Kc5 {[%clk 0:00:59.4]} 44...
Kd7 {[%clk 0:00:02.5]} 45. Bd4 {[%clk 0:00:58.6]} 45... Bg5 {[%clk 0:00:02.5]}
46. f6 {[%clk 0:00:57.7]} 46... Bh6 {[%clk 0:00:02.9]} 47. Kb6 {[%clk
0:00:56.3]} 47... Bf8 {[%clk 0:00:03.8]} 48. c4 {[%clk 0:00:52]} 48... Kd6
{[%clk 0:00:03.8]} 49. Bc5+ {[%clk 0:00:51.7]} 49... Ke6 {[%clk 0:00:04.3]} 50.
Bxf8 {[%clk 0:00:52.5]} 1-0

[Event "*** Titled Tuesday Blitz"]
[Site "Chess.com"]
[Date "2020.11.10"]
[Round "4"]
[White "Keures"]
[Black "ErikBlomqvist"]
[Result "1-0"]
[WhiteElo "2346"]
[BlackElo "2469"]
[TimeControl "180+1"]
[EndTime "10:42:15 PST"]
[Termination "Keures won on time"]

1. d4 {[%clk 0:02:59.5]} 1... Nf6 {[%clk 0:02:59.8]} 2. c4 {[%clk 0:02:59]} 2...
e6 {[%clk 0:02:59.7]} 3. Nc3 {[%clk 0:02:58.7]} 3... Bb4 {[%clk 0:02:59.4]} 4.
Qc2 {[%clk 0:02:58.6]} 4... d6 {[%clk 0:02:56.3]} 5. a3 {[%clk 0:02:56.5]} 5...
Bxc3+ {[%clk 0:02:54.7]} 6. Qxc3 {[%clk 0:02:57.4]} 6... Nbd7 {[%clk 0:02:42]}
7. Nf3 {[%clk 0:02:55.9]} 7... b6 {[%clk 0:02:38.5]} 8. g3 {[%clk 0:02:54.6]}
8... Bb7 {[%clk 0:02:37.9]} 9. Bg2 {[%clk 0:02:55]} 9... O-O {[%clk 0:02:36]}
10. O-O {[%clk 0:02:54.8]} 10... Qe7 {[%clk 0:02:32.4]} 11. b3 {[%clk
0:02:53.5]} 11... e5 {[%clk 0:02:23.8]} 12. dxe5 {[%clk 0:02:53]} 12... dxe5
{[%clk 0:02:23]} 13. Bb2 {[%clk 0:02:50.2]} 13... Rfe8 {[%clk 0:02:20.3]} 14.
Rad1 {[%clk 0:02:42.3]} 14... h6 {[%clk 0:02:05.1]} 15. Nh4 {[%clk 0:02:41.5]}
15... Bxg2 {[%clk 0:02:04.3]} 16. Kxg2 {[%clk 0:02:42.4]} 16... Nc5 {[%clk
0:01:51.7]} 17. f3 {[%clk 0:02:24.5]} 17... Rad8 {[%clk 0:01:15.9]} 18. Nf5
{[%clk 0:02:14.1]} 18... Qe6 {[%clk 0:01:16]} 19. e4 {[%clk 0:02:13.3]} 19...
Kh7 {[%clk 0:01:11.4]} 20. Ne3 {[%clk 0:01:46.7]} 20... c6 {[%clk 0:01:06.1]}
21. Qc2 {[%clk 0:01:34.3]} 21... Kg8 {[%clk 0:00:42.2]} 22. Nf5 {[%clk
0:01:22.5]} 22... Kh7 {[%clk 0:00:36.1]} 23. Rf2 {[%clk 0:01:13.7]} 23... Rxd1
{[%clk 0:00:33.2]} 24. Qxd1 {[%clk 0:01:13.3]} 24... g6 {[%clk 0:00:28.4]} 25.
Ne3 {[%clk 0:01:10.8]} 25... Re7 {[%clk 0:00:26.2]} 26. Rd2 {[%clk 0:01:08.8]}
26... Rd7 {[%clk 0:00:26.7]} 27. Rxd7 {[%clk 0:01:03.3]} 27... Nfxd7 {[%clk
0:00:27.6]} 28. b4 {[%clk 0:00:54.3]} 28... Nb7 {[%clk 0:00:23.4]} 29. Qd2
{[%clk 0:00:37.7]} 29... Nd6 {[%clk 0:00:22.8]} 30. Ng4 {[%clk 0:00:36.2]} 30...
g5 {[%clk 0:00:17.3]} 31. c5 {[%clk 0:00:28.6]} 31... Nc4 {[%clk 0:00:17.3]} 32.
Qc3 {[%clk 0:00:22.6]} 32... Nxb2 {[%clk 0:00:17.1]} 33. Qxb2 {[%clk 0:00:23.5]}
33... bxc5 {[%clk 0:00:17.7]} 34. bxc5 {[%clk 0:00:23.4]} 34... Nxc5 {[%clk
0:00:14.3]} 35. Qxe5 {[%clk 0:00:23]} 35... h5 {[%clk 0:00:05.8]} 36. Qxe6
{[%clk 0:00:20.9]} 36... fxe6 {[%clk 0:00:04.4]} 37. Ne5 {[%clk 0:00:20.6]} 1-0